bitfinex/quotes_SOLUSD_20250708
["timestamp","ask_amount","ask_price","bid_price","bid_amount"]
[1752000631994,0.06,152.62,152.61,45.75168233]
[1752000644553,0.06,152.62,152.61,12.36168233]
[1752000644861,0.06,152.62,152.61,45.76168233]
[1752000645169,0.06,152.62,152.61,39.98265054]
[1752000645331,0.06,152.62,152.61,45.76168233]
[1752000645657,0.06,152.62,152.61,46.04600547]
[1752000645949,0.06,152.62,152.61,72.04600547]
[1752000646127,0.06,152.62,152.61,32.58265054]
[1752000646331,0.06,152.63,152.61,71.76168233]
[1752000646535,0.06,152.63,152.62,6.06335493]
[1752000647052,0.06,152.63,152.62,12.61557613]
[1752000647854,6.0277,152.69,152.65,26.0]
[1752000648032,6.0277,152.69,152.66,39.17903179]
[1752000648231,6.0277,152.69,152.67,33.38]
[1752000648639,11.80673179,152.69,152.67,33.38]
[1752000649361,18.64964886,152.68,152.64,6.5512288]
[1752000649660,24.42868065,152.68,152.65,33.38]
[1752000651373,18.64964886,152.68,152.65,33.38]
[1752000651661,6.0277,152.69,152.65,39.93073191]
[1752000651836,6.0277,152.69,152.66,5.77903179]
[1752000652038,6.0277,152.69,152.67,33.4]
[1752000652260,11.80673179,152.69,152.67,33.4]
[1752000652846,24.42868065,152.68,152.67,33.4]
[1752000655177,11.80673179,152.69,152.67,33.4]
[1752000655584,1e-08,152.7,152.68,5.77903179]
[1752000655787,1e-08,152.7,152.69,39.15903179]
[1752000656283,1e-08,152.7,152.69,45.70824915]
[1752000660695,1e-08,152.7,152.69,39.92921736]
[1752000660894,1e-08,152.7,152.69,45.70824915]
[1752000665113,1e-08,152.7,152.69,33.38]
[1752000665792,1e-08,152.7,152.69,39.15903179]
[1752000666394,1e-08,152.7,152.69,33.38]
[1752000666888,1e-08,152.7,152.69,39.15903179]
[1752000667060,1e-08,152.7,152.69,12.32824915]
[1752000667265,1e-08,152.7,152.69,45.68824915]
[1752000669568,1e-08,152.7,152.69,39.90921736]
[1752000669873,1e-08,152.7,152.69,45.68824915]
[1752000672794,1e-08,152.7,152.69,39.90921736]
[1752000672999,1e-08,152.7,152.69,45.68824915]
[1752000676495,1e-08,152.7,152.69,33.34]
[1752000676694,1e-08,152.7,152.64,88.3]
[1752000676876,5.7790318,152.7,152.64,6.55136268]
[1752000677078,5.7790318,152.7,152.63,6.58163915]
[1752000677079,5.77903179,152.67,152.63,6.58163915]
[1752000677287,5.77903179,152.66,152.64,33.34]
[1752000677479,5.77903179,152.65,152.63,0.03]
[1752000677704,5.77903179,152.65,152.64,33.34]
[1752000677995,7.40083179,152.65,152.64,33.34]
[1752000678291,18.64964886,152.64,152.63,0.03]
[1752000678497,30.98004333,152.64,152.63,0.03]
[1752000678799,30.98004333,152.64,152.63,33.37]
[1752000679199,30.98004333,152.64,152.63,0.03]
[1752000679505,30.98004333,152.64,152.63,33.37]
[1752000682399,30.98004333,152.64,152.63,0.03]
[1752000682576,25.20101154,152.64,152.63,0.03]
[1752000682778,30.98004333,152.64,152.63,33.37]
[1752000682983,24.42868065,152.64,152.63,33.37]
[1752000683390,7.40083179,152.65,152.63,33.37]
[1752000684201,1.6218,152.65,152.63,33.37]
[1752000685785,7.40083179,152.65,152.63,33.37]
[1752000686290,5.77903179,152.64,152.63,33.37]
[1752000688701,13.95178495,152.65,152.63,33.37]
[1752000688880,13.95180707,152.65,152.63,33.37]
[1752000689907,8.17277528,152.65,152.63,33.37]
[1752000690208,13.95180707,152.65,152.63,33.37]
[1752000691106,24.42868065,152.64,152.63,33.37]
[1752000691309,24.42868065,152.64,152.63,0.03]
[1752000691511,30.49203558,152.64,152.63,33.39]
[1752000691813,30.49203558,152.64,152.63,0.03]
[1752000691814,172.21300379,152.64,152.63,0.03]
[1752000692405,178.76436647,152.64,152.63,0.03]
[1752000693697,31.26436647,152.64,152.63,0.03]
[1752000696015,37.04339826,152.64,152.63,0.03]
[1752000698095,79.42180496,152.64,152.61,0.03]
[1752000698317,24.71300379,152.62,152.61,0.03]
[1752000699701,6.55393891,152.58,152.56,0.03]
[1752000699905,24.42868065,152.57,152.56,0.03]
[1752000700100,16.38311361,152.6,152.56,0.03]
[1752000700101,18.64964886,152.6,152.56,0.03]
[1752000700325,5.77903179,152.58,152.56,0.03]
[1752000700705,5.77903179,152.57,152.56,0.03]
[1752000701225,24.42868065,152.57,152.56,0.03]
[1752000701422,30.98304913,152.57,152.56,0.03]
[1752000702027,30.98304913,152.57,152.56,33.39]
[1752000703527,24.42868065,152.57,152.56,33.39]
[1752000703725,24.42868065,152.57,152.56,0.03]
[1752000703933,24.42868065,152.57,152.56,33.39]
[1752000704891,5.77903179,152.57,152.56,33.39]
[1752000705091,18.64964886,152.6,152.56,33.39]
[1752000705294,5.77903179,152.59,152.56,33.39]
[1752000705930,18.64964886,152.6,152.56,33.39]
[1752000706101,5.77903179,152.59,152.56,39.94479069]
[1752000707718,24.42868065,152.6,152.56,39.94479069]
[1752000708105,18.64964886,152.6,152.56,39.94479069]
[1752000708304,24.42868065,152.6,152.56,39.94479069]
[1752000709917,8.12968007,152.62,152.57,5.77903179]
[1752000709918,5.77903179,152.62,152.57,5.77903179]
[1752000710419,5.77903179,152.62,152.58,6.55393891]
[1752000710626,5.77903179,152.62,152.59,33.36]
[1752000711727,5.83903179,152.62,152.59,33.36]
[1752000712420,0.06,152.62,152.59,45.69230732]
[1752000714031,0.06,152.62,152.6,5.77903179]
[1752000715136,0.06,152.62,152.61,5.77903179]
[1752000716543,0.06,152.62,152.61,6.55265054]
[1752000716738,0.06,152.62,152.61,12.33168233]
[1752000717816,0.06,152.62,152.61,13.77780547]
[1752000718234,0.06,152.62,152.61,39.77780547]
[1752000719044,1e-08,152.62,152.61,14.43307052]
[1752000720120,1e-08,152.62,152.61,40.43307052]
[1752000720438,1e-08,152.62,152.61,14.43307052]
[1752000720626,1e-08,152.62,152.61,47.79307052]
[1752000720818,1e-08,152.62,152.61,66.44271938]
[1752000721432,1e-08,152.62,152.61,72.22175117]
[1752000721645,1e-08,152.62,152.61,66.44271938]
[1752000722543,1e-08,152.62,152.61,75.5164574]
[1752000723112,1e-08,152.62,152.61,66.44271938]
[1752000725418,1e-08,152.62,152.61,72.22175117]
[1752000726545,1e-08,152.7,152.61,72.22175117]
[1752000726720,1e-08,152.7,152.69,5.77903179]
[1752000726920,3.08000001,152.7,152.69,39.11903179]
[1752000727223,3.08000001,152.7,152.69,12.32824915]
[1752000727531,3.08000001,152.7,152.69,45.66824915]
[1752000730118,3.08000001,152.7,152.69,39.11903179]
[1752000730829,3.08000001,152.7,152.69,45.66824915]
[1752000733346,3.08000001,152.7,152.69,45.95257229]
[1752000735161,3.08000001,152.7,152.69,39.88921736]
[1752000735328,3.08000001,152.7,152.69,39.11903179]
[1752000735645,3.08000001,152.7,152.69,45.66824915]
[1752000737046,3.08000001,152.7,152.69,39.88921736]
[1752000737226,3.08000001,152.7,152.69,39.11903179]
[1752000738053,3.08000001,152.7,152.69,45.66824915]
[1752000738734,1e-08,152.7,152.69,45.66824915]
[1752000742862,1e-08,152.7,152.69,45.95257229]
[1752000743027,1e-08,152.7,152.69,46.60749402]
[1752000744452,1e-08,152.7,152.69,31.91714288]
[1752000744635,1e-08,152.7,152.69,46.58749402]
[1752000747832,1e-08,152.7,152.69,40.80846223]
[1752000748044,1e-08,152.7,152.69,46.58749402]
[1752000752974,1e-08,152.7,152.69,65.23714288]
[1752000753745,1e-08,152.7,152.69,46.58749402]
[1752000754962,1e-08,152.7,152.69,45.93257229]
[1752000755548,1e-08,152.7,152.69,5.92119336]
[1752000755740,1e-08,152.7,152.69,31.77903179]
[1752000756044,1e-08,152.7,152.68,3.32207499]
[1752000756237,1e-08,152.7,152.69,33.32]
[1752000756434,1e-08,152.7,152.69,65.38335493]
[1752000757058,1e-08,152.7,152.69,71.93257229]
[1752000758548,1e-08,152.7,152.69,45.93257229]
[1752000764348,1e-08,152.7,152.69,31.26222115]
[1752000764551,1e-08,152.7,152.69,70.36125294]
[1752000764762,1e-08,152.7,152.69,64.58222115]
[1752000766369,1e-08,152.7,152.69,70.36125294]
[1752000766671,1e-08,152.7,152.69,73.65595917]
[1752000774085,1e-08,152.7,152.69,79.43499096]
[1752000774582,1e-08,152.7,152.69,73.65595917]
[1752000778884,1e-08,152.7,152.69,71.5657037]
[1752000781584,1e-08,152.7,152.69,67.87692738]
[1752000781884,1e-08,152.7,152.69,71.5457037]
[1752000782086,1e-08,152.7,152.69,62.47196568]
[1752000782294,1e-08,152.7,152.69,43.53799368]
[1752000782474,1e-08,152.7,152.69,10.23799368]
[1752000782676,1e-08,152.7,152.69,43.53799368]
[1752000782894,1e-08,152.7,152.69,43.82231682]
[1752000784878,1e-08,152.7,152.69,46.554513]
[1752000785470,1e-08,152.7,152.69,55.62825102]
[1752000787585,1e-08,152.7,152.69,74.27789988]
[1752000788601,1.3695731,152.73,152.72,26.0]
[1752000788770,1.3695731,152.73,152.72,77.66435553]
[1752000791296,1.3695731,152.73,152.72,71.89830476]
[1752000791795,1.3695731,152.73,152.72,77.66435553]
[1752000798296,1.4295731,152.73,152.72,77.66435553]
[1752000799593,1.4295731,152.73,152.72,96.31400439]
[1752000802687,1.4295731,152.73,152.72,93.91426037]
[1752000802892,1.4295731,152.73,152.72,99.68031114]
[1752000803599,1.4295731,152.73,152.72,105.44636191]
[1752000804882,1.4295731,152.73,152.72,112.35402002]
[1752000805082,1.4295731,152.73,152.72,103.2216625]
[1752000805393,1.4295731,152.73,152.72,200.64220777]
[1752000805988,0.1,152.75,152.73,18.933972]
[1752000806302,0.1,152.75,152.74,36.98795193]
[1752000806979,0.1,152.75,152.74,43.53502538]
[1752000811492,0.1,152.75,152.74,62.46899738]
[1752000813099,0.1,152.75,152.74,63.12370472]
[1752000814211,0.1,152.75,152.74,62.46899738]
[1752000815110,0.1,152.75,152.74,63.12370472]
[1752000829302,0.1,152.75,152.74,72.24489243]
[1752000831323,1e-08,152.75,152.74,72.24489243]
[1752000833911,1e-08,152.75,152.74,63.12370472]
[1752000834122,1.5238,152.8,152.76,48.62192393]
[1752000834340,1.5238,152.8,152.76,81.90192393]
[1752000835222,5.1128218,152.82,152.8,26.0]
[1752000835429,5.1128218,152.82,152.81,37.25227507]
[1752000835835,5.1128218,152.82,152.81,43.79634941]
[1752000836140,5.1128218,152.82,152.81,49.07979269]
[1752000836716,5.1128218,152.82,152.81,67.72944155]
[1752000839127,5.1128218,152.82,152.81,15.79979269]
[1752000839326,5.1128218,152.82,152.81,49.07979269]
[1752000840951,5.1128218,152.82,152.81,43.79634941]
[1752000841445,5.1728218,152.82,152.81,40.10839748]
[1752000841655,5.1728218,152.82,152.81,43.79634941]
[1752000842154,5.1728218,152.82,152.81,40.10839748]
[1752000842328,5.1728218,152.82,152.81,43.79634941]
[1752000844650,5.1728218,152.82,152.81,40.10839748]
[1752000844845,5.1728218,152.82,152.81,43.79634941]
[1752000845433,5.1728218,152.82,152.81,40.10839748]
[1752000845638,5.1728218,152.82,152.81,43.79634941]
[1752000846650,5.1728218,152.82,152.81,59.28]
[1752000846849,5.1728218,152.82,152.81,33.26]
[1752000847353,5.1728218,152.82,152.79,3.68795193]
[1752000847525,5.1728218,152.82,152.8,33.26]
[1752000847951,5.1728218,152.82,152.81,33.26]
[1752000849448,5.1728218,152.82,152.81,59.28]
[1752000850751,5.1728218,152.82,152.81,62.96795193]
[1752000851341,5.1728218,152.82,152.81,69.51202627]
[1752000852354,5.1728218,152.82,152.81,69.79634941]
[1752000854660,5.1728218,152.82,152.81,66.10839748]
[1752000854842,5.1728218,152.82,152.81,69.79634941]
[1752000859549,0.1,152.86,152.85,26.28432314]
[1752000859764,0.1,152.86,152.85,63.31227507]
[1752000860943,0.1,152.86,152.85,65.37909141]
[1752000861275,0.1,152.86,152.85,71.9214532]
[1752000863151,0.1,152.86,152.85,26.28432314]
[1752000863458,0.1,152.86,152.85,65.07476827]
[1752000865872,0.1,152.86,152.84,6.54268692]
[1752000866058,0.1,152.86,152.85,59.32]
[1752000867647,1.6543,152.86,152.85,33.32]
[1752000867957,7.7174,152.86,152.85,33.34]
[1752000869366,20.01413271,152.86,152.84,26.0]
[1752000869577,5.75476827,152.85,152.8,12.29912361]
[1752000869750,5.75476827,152.85,152.81,33.34]
[1752000869950,5.75476827,152.85,152.81,59.34]
[1752000870746,20.01413271,152.86,152.81,65.09476827]
[1752000871988,5.75476827,152.85,152.81,31.75476827]
[1752000872282,5.75476827,152.85,152.82,33.36]
[1752000872451,5.75476827,152.85,152.83,33.36]
[1752000873487,12.29717231,152.85,152.83,33.36]
[1752000873701,6.54240404,152.85,152.83,33.36]
[1752000873875,12.29717231,152.85,152.84,33.36]
[1752000874054,12.29717231,152.85,152.81,26.0]
[1752000874260,12.29717231,152.85,152.82,33.34]
[1752000874684,12.29717231,152.85,152.81,26.0]
[1752000874889,12.29717231,152.85,152.82,33.34]
[1752000875668,20.0141436,152.86,152.82,39.09476827]
[1752000876478,13.47216827,152.86,152.82,45.63835616]
[1752000876804,13.47216827,152.86,152.82,39.88358789]
[1752000876805,7.7174,152.86,152.82,39.88358789]
[1752000877091,7.7174,152.86,152.82,45.63835616]
[1752000877299,7.7174,152.86,152.83,5.75476827]
[1752000877508,7.7174,152.86,152.84,33.34]
[1752000878280,7.7174,152.86,152.84,39.88263399]
[1752000878499,7.7174,152.86,152.85,5.75476827]
[1752000883379,0.1,152.86,152.85,12.29713006]
[1752000883578,0.1,152.86,152.85,6.82668493]
[1752000883786,0.1,152.86,152.85,12.5814532]
[1752000885802,0.1,152.86,152.85,31.23110206]
[1752000885998,0.1,152.86,152.85,31.88533823]
[1752000886699,0.1,152.86,152.85,40.9635792]
[1752000887393,0.06,152.87,152.86,18.933972]
[1752000887697,0.06,152.87,152.86,52.233972]
[1752000887898,0.06,152.87,152.86,57.98874027]
[1752000888100,0.06,152.87,152.86,32.03909141]
[1752000888284,0.06,152.87,152.86,65.31909141]
[1752000889297,0.06,152.87,152.86,31.75476827]
[1752000889499,0.06,152.87,152.86,33.3]
[1752000891704,0.06,152.87,152.86,39.05476827]
[1752000891999,3.82193563,152.89,152.86,41.47691364]
[1752000892201,3.82193563,152.89,152.87,8.17691364]
[1752000892400,3.82193563,152.89,152.88,35.72214537]
[1752000893603,16.34412449,152.97,152.88,67.47691364]
[1752000893802,5.75476827,152.95,152.91,5.75476827]
[1752000893990,3.08,152.92,152.9,5.75476827]
[1752000894192,3.08,152.92,152.91,35.74175748]
[1752000894397,5.75476827,152.94,152.91,35.74175748]
[1752000894597,5.75476827,152.94,152.92,2.4213534]
[1752000894896,6.53893938,152.93,152.9,5.75476827]
[1752000895091,13.00901859,152.94,152.91,33.3]
[1752000895309,1.44263315,152.93,152.91,33.3]
[1752000895609,18.76378686,152.94,152.91,33.3]
[1752000896206,18.76378686,152.94,152.91,30.02695684]
[1752000896413,13.00901859,152.94,152.91,30.02695684]
[1752000896596,18.76378686,152.94,152.91,30.02695684]
[1752000898326,13.00901859,152.94,152.91,30.02695684]
[1752000898615,18.76378686,152.94,152.91,30.02695684]
[1752000898812,5.75476827,152.93,152.91,30.02695684]
[1752000899013,13.00901859,152.94,152.91,30.02695684]
[1752000899014,5.75476827,152.92,152.91,30.02695684]
[1752000900823,5.75476827,152.92,152.88,26.0]
[1752000901033,5.75476827,152.9,152.86,31.75476827]
[1752000901321,5.75476827,152.88,152.87,33.28]
[1752000901731,12.29584623,152.88,152.87,33.28]
[1752000903019,12.29584623,152.88,152.87,33.3]
[1752000905137,12.29584623,152.88,152.83,31.75476827]
[1752000905383,12.29639022,152.87,152.84,33.28]
[1752000905642,5.75476827,152.87,152.84,33.28]
[1752000907205,6.54125498,152.88,152.84,33.28]
[1752000907406,5.75476827,152.87,152.84,33.28]
[1752000907736,5.75476827,152.88,152.84,39.06476827]
[1752000908432,1.5852,152.89,152.86,5.75476827]
[1752000908648,13.88062583,152.89,152.87,33.28]
[1752000908809,13.88062583,152.89,152.88,33.28]
[1752000909008,0.06,152.91,152.88,33.3]
[1752000909234,5.81476827,152.91,152.88,33.3]
[1752000911073,0.06,152.91,152.88,33.3]
[1752000912731,0.06,152.91,152.88,39.05476827]
[1752000913361,0.06,152.91,152.88,33.3]
[1752000913735,0.06,152.91,152.88,39.05476827]
[1752000914064,0.06,152.91,152.9,31.75476827]
[1752000914243,0.06,152.91,152.9,65.05476827]
[1752000915463,0.06,152.91,152.9,71.87931377]
[1752000915958,0.06,152.91,152.9,65.33909141]
[1752000916149,0.06,152.91,152.9,71.87931377]
[1752000916330,0.06,152.91,152.9,65.33909141]
[1752000916750,0.06,152.91,152.9,26.0]
[1752000916949,0.06,152.91,152.9,59.3]
[1752000917180,0.06,152.91,152.9,33.3]
[1752000917385,5.81476827,152.91,152.9,33.3]
[1752000917758,5.81476827,152.91,152.84,0.03]
[1752000917959,5.81476827,152.91,152.85,39.05476827]
[1752000917960,5.75476827,152.9,152.85,39.05476827]
[1752000918274,5.75476827,152.89,152.86,26.0]
[1752000918458,5.75476827,152.89,152.87,33.3]
[1752000919259,6.54054296,152.9,152.88,33.32]
[1752000919585,6.54054296,152.9,152.89,33.32]
[1752000919586,12.29531123,152.9,152.89,33.32]
[1752000919766,6.54054296,152.9,152.89,33.32]
[1752000919966,12.29531123,152.9,152.89,33.32]
[1752000920184,6.54054296,152.9,152.85,31.75476827]
[1752000920485,6.54054296,152.9,152.86,33.3]
[1752000920486,12.29531123,152.9,152.86,33.3]
[1752000920674,5.75476827,152.89,152.86,33.3]
[1752000920868,0.06,152.91,152.86,33.3]
[1752000921193,5.75476827,152.9,152.86,39.05476827]
[1752000921986,5.75476827,152.9,152.86,33.3]
[1752000922290,5.75476827,152.9,152.86,39.05476827]
[1752000922459,5.75476827,152.9,152.86,33.3]
[1752000923296,5.75476827,152.9,152.86,45.5966688]
[1752000923493,12.35481208,152.91,152.87,5.75476827]
[1752000923690,12.35481208,152.91,152.88,33.3]
[1752000925390,12.35481208,152.91,152.89,2.42472524]
[1752000925590,12.35481208,152.91,152.9,33.3]
[1752000926391,5.81476827,152.91,152.9,33.3]
[1752000926701,0.06,152.91,152.9,33.3]
[1752000929400,0.06,152.91,152.9,41.48008828]
[1752000929691,0.06,152.91,152.9,35.72532001]
[1752000933394,0.06,152.91,152.9,41.48008828]
[1752000933903,0.06,152.91,152.9,35.72532001]
[1752000935293,0.06,152.91,152.9,41.48008828]
[1752000936295,0.06,152.91,152.9,48.02031064]
[1752000936586,0.06,152.91,152.9,35.72532001]
[1752000936790,0.06,152.91,152.9,41.48008828]
[1752000937681,0.06,152.91,152.9,48.02031064]
[1752000938295,0.06,152.91,152.9,92.45428264]
[1752000939375,0.06,152.91,152.9,28.70964315]
[1752000939602,0.06,152.91,152.9,74.32463378]
[1752000941701,0.06,152.91,152.9,61.21951437]
[1752000941882,0.06,152.91,152.9,66.97428264]
[1752000943680,5.81476827,152.91,152.9,2.42532001]
[1752000943908,5.81476827,152.91,152.86,6.54177326]
[1752000944080,0.06,152.91,152.88,5.75476827]
[1752000944285,0.06,152.91,152.89,41.63883134]
[1752000944487,0.06,152.91,152.9,35.88406307]
[1752000949400,7.7345,153.01,152.93,26.0]
[1752000949604,31.6242052,153.0,152.94,35.88366168]
[1752000949805,5.75476827,152.99,152.94,5.75476827]
[1752000950008,5.75476827,152.98,152.95,35.923209]
[1752000950307,25.86943693,153.0,152.95,33.5]
[1752000950497,12.29153704,152.99,152.95,33.5]
[1752000951513,6.53676877,152.99,152.95,33.5]
[1752000951698,12.29153704,152.99,152.95,33.5]
[1752000952187,12.29153704,152.99,152.94,5.75476827]
[1752000952388,12.29153704,152.99,152.95,33.52]
[1752000952591,5.75476827,152.98,152.95,33.52]
[1752000953115,12.29167975,152.98,152.95,33.52]
[1752000953518,6.53691148,152.98,152.95,33.52]
[1752000953693,12.29167975,152.98,152.95,33.52]
[1752000954235,6.53637492,152.99,152.95,33.52]
[1752000954526,5.75476827,152.98,152.95,33.52]
[1752000955622,6.5369085,152.98,152.95,33.52]
[1752000955829,12.29167677,152.98,152.95,33.52]
[1752000956312,6.53654887,152.99,152.96,5.75476827]
[1752000956514,31.62429777,153.0,152.97,33.5]
[1752000957605,19.3334,153.0,152.97,33.5]
[1752000957949,25.86936849,153.0,152.97,33.5]
[1752000959614,25.08816827,153.0,152.97,33.5]
[1752000960131,19.3334,153.0,152.97,39.25476827]
[1752000961036,31.62411804,153.0,152.97,33.5]
[1752000961233,19.3334,153.0,152.97,39.25476827]
[1752000962032,19.3334,153.0,152.97,33.5]
[1752000962223,19.3334,153.0,152.98,33.48]
[1752000963315,31.62420044,153.0,152.98,33.48]
[1752000963637,25.08816827,153.0,152.98,33.48]
[1752000963820,19.3334,153.0,152.98,33.48]
[1752000964133,25.08816827,153.0,152.98,33.48]
[1752000965248,19.3334,153.0,152.98,33.48]
[1752000970749,25.86937857,153.0,152.98,33.48]
[1752000971740,5.75476827,152.99,152.94,5.75476827]
[1752000971942,5.75476827,152.98,152.94,5.75476827]
[1752000972139,25.86937857,153.0,152.95,39.19476827]
[1752000972331,5.75476827,152.99,152.95,39.19476827]
[1752000972915,5.75476827,152.99,152.95,5.75476827]
[1752000973120,5.75476827,152.99,152.96,33.46]
[1752000974050,6.53680219,152.98,152.96,33.46]
[1752000975148,5.75476827,152.98,152.96,33.46]
[1752000976831,12.29114319,152.99,152.96,33.46]
[1752000977022,6.53637492,152.99,152.96,33.46]
[1752000977224,5.75476827,152.98,152.97,33.46]
[1752000977638,5.75476827,152.98,152.93,12.29366848]
[1752000977841,5.75476827,152.96,152.92,5.75476827]
[1752000978060,5.75476827,152.95,152.91,31.78476827]
[1752000978228,5.75476827,152.95,152.93,33.46]
[1752000978923,22.87731223,152.99,152.93,33.46]
[1752000979132,5.75476827,152.96,152.92,12.29398388]
[1752000979337,5.75476827,152.96,152.94,33.46]
[1752000980932,6.53744608,152.97,152.94,33.46]
[1752000981140,12.29221435,152.97,152.94,33.46]
[1752000981341,5.75476827,152.96,152.94,33.46]
[1752000981546,5.75476827,152.95,152.91,0.03]
[1752000981730,5.75476827,152.92,152.91,0.03]
[1752000982057,5.75476827,152.92,152.91,33.49]
[1752000982432,12.29413525,152.92,152.91,33.51]
[1752000982634,12.29413525,152.92,152.91,0.03]
[1752000983059,12.29413525,152.92,152.91,33.49]
[1752000983554,12.29413525,152.92,152.91,33.51]
[1752000983942,12.29413525,152.92,152.91,0.03]
[1752000984162,22.88479141,152.94,152.91,0.03]
[1752000984449,22.88479141,152.94,152.92,33.48]
[1752000984628,5.75476827,152.93,152.92,33.48]
[1752000985258,12.29370765,152.93,152.92,33.48]
[1752000986637,6.53893938,152.93,152.92,33.48]
[1752000986837,12.29370765,152.93,152.92,33.48]
[1752000987641,6.53893938,152.93,152.92,33.48]
[1752000987855,12.29370765,152.93,152.92,33.48]
[1752000988640,12.29370765,152.93,152.91,0.03]
[1752000988831,6.53893938,152.93,152.92,33.5]
[1752000989038,12.29370765,152.93,152.92,33.5]
[1752000990441,6.53893938,152.93,152.92,33.5]
[1752000990658,12.29370765,152.93,152.92,33.5]
[1752000997074,12.35370765,152.93,152.92,33.5]
[1752001006080,12.35370765,152.93,152.92,33.46]
[1752001006269,15.43370765,152.93,152.92,33.46]
[1752001006471,15.43370765,152.93,152.91,0.03]
[1752001006786,9.67893938,152.93,152.92,33.46]
[1752001007863,15.43370765,152.93,152.92,33.46]
[1752001008771,12.35370765,152.93,152.92,33.46]
[1752001011799,15.43370765,152.93,152.92,33.46]
[1752001012896,15.43370765,152.93,152.91,0.03]
[1752001013066,15.43370765,152.93,152.91,33.47]
[1752001013268,5.75476827,152.92,152.91,33.47]
[1752001015200,12.29413525,152.92,152.91,33.47]
[1752001016505,12.29413525,152.92,152.91,0.03]
[1752001016881,10.22345159,152.92,152.91,0.03]
[1752001026606,6.53936698,152.92,152.91,0.03]
[1752001026917,10.22345159,152.92,152.91,0.03]
[1752001027401,18.64964886,152.91,152.9,0.03]
[1752001027581,26.0,152.88,152.84,0.03]
[1752001027901,3.68408461,152.85,152.84,0.03]
[1752001028100,3.68408461,152.85,152.84,33.41]
[1752001028308,10.2264464,152.85,152.84,33.41]
[1752001028488,10.2264464,152.85,152.84,0.03]
[1752001028892,12.30348825,152.85,152.84,0.03]
[1752001032007,6.54236179,152.85,152.84,0.03]
[1752001033029,6.54211215,152.86,152.84,0.03]
[1752001033202,6.54065014,152.89,152.84,0.03]
[1752001033400,5.76112646,152.89,152.84,5.79112646]
[1752001033603,12.30134882,152.9,152.85,5.76112646]
[1752001033916,5.76112646,152.89,152.86,33.36]
[1752001035395,6.54107796,152.88,152.86,33.36]
[1752001035694,12.30220442,152.88,152.86,33.36]
[1752001035907,6.54107796,152.88,152.86,33.36]
[1752001037013,12.30220442,152.88,152.86,33.36]
[1752001037217,12.30191992,152.89,152.86,33.36]
[1752001037800,12.30145634,152.9,152.86,39.12112646]
[1752001038792,5.76112646,152.89,152.86,33.36]
[1752001039497,6.54107796,152.88,152.86,33.36]
[1752001040219,6.54107796,152.88,152.86,33.39]
[1752001040702,6.54084566,152.89,152.86,33.39]
[1752001041524,12.36152921,152.9,152.86,39.15112646]
[1752001041815,6.60040275,152.9,152.86,39.15112646]
[1752001042326,6.60025273,152.9,152.86,33.39]
[1752001042621,6.60025273,152.9,152.87,5.76112646]
[1752001042622,0.06,152.9,152.87,5.76112646]
[1752001043216,0.06,152.9,152.86,45.69292469]
[1752001043423,0.06,152.9,152.86,33.39]
[1752001043609,0.06,152.9,152.86,39.15112646]
[1752001044112,5.82112646,152.9,152.86,39.15112646]
[1752001044311,0.06,152.9,152.86,45.69289321]
[1752001044642,0.06,152.9,152.87,5.76112646]
[1752001044920,5.82112646,152.9,152.86,39.15112646]
[1752001046212,0.06,152.9,152.86,39.15112646]
[1752001046521,5.82112646,152.9,152.86,39.15112646]
[1752001046723,5.76112646,152.89,152.86,33.39]
[1752001048223,12.36167635,152.9,152.86,45.69301514]
[1752001049125,5.82112646,152.9,152.86,45.69301514]
[1752001050026,12.36142961,152.9,152.86,33.39]
[1752001050220,12.36142961,152.9,152.86,39.15112646]
[1752001050609,12.36142961,152.9,152.86,5.79112646]
[1752001050811,12.36142961,152.9,152.87,33.32]
[1752001051309,5.82112646,152.9,152.87,33.32]
[1752001052229,12.36145688,152.9,152.87,33.32]
[1752001053221,12.36145688,152.9,152.86,0.03]